bitfinex/quotes_ETHUSD_20250616
["timestamp","ask_amount","ask_price","bid_price","bid_amount"]
[1750039208581,3.01693346,2561.7,2560.2,0.6947]
[1750039208882,3.01693346,2561.7,2560.3,0.35761387]
[1750039209085,0.7723,2561.5,2560.4,0.35770599]
[1750039209248,0.7723,2561.5,2560.5,0.35772966]
[1750039209446,10.62241163,2561.4,2560.6,0.35771839]
[1750039209664,10.62241163,2561.4,2559.9,1.19793417]
[1750039209986,0.8182,2561.3,2559.9,1.19793417]
[1750039210146,0.8182,2561.3,2559.5,0.8047]
[1750039210345,0.8182,2561.3,2559.6,7.2958324]
[1750039210652,0.7943,2561.1,2559.7,0.81005324]
[1750039210968,11.265,2561.5,2560.2,10.0]
[1750039211143,11.265,2561.5,2560.1,10.7747]
[1750039211344,11.265,2561.5,2560.1,0.7747]
[1750039211543,0.76,2561.4,2560.2,0.03905065]
[1750039211985,0.76,2561.4,2559.7,15.22715036]
[1750039212145,1.2025,2561.3,2559.9,10.0]
[1750039212481,1.2025,2561.3,2560.0,0.32608695]
[1750039212692,6.52474973,2561.7,2560.0,0.32608695]
[1750039212693,0.8242,2562.2,2560.2,0.55]
[1750039212894,0.8242,2562.2,2560.5,10.0]
[1750039213093,0.8242,2561.8,2560.1,0.7595]
[1750039213303,0.8242,2561.7,2560.1,14.66558083]
[1750039213600,0.8242,2561.7,2560.2,0.35772856]
[1750039213882,10.0,2561.8,2560.3,0.03904759]
[1750039213883,1.08242,2561.6,2560.3,0.03904759]
[1750039214179,9.8602,2561.5,2560.4,0.35772636]
[1750039214379,9.8602,2561.5,2560.5,0.03904899]
[1750039214791,2.028,2561.9,2560.6,0.35750092]
[1750039214993,2.028,2561.9,2560.7,0.0390397]
[1750039215691,2.028,2561.9,2560.8,0.35747696]
[1750039215889,0.755,2561.8,2560.5,0.7538]
[1750039216108,2.027,2561.7,2560.1,10.0]
[1750039216264,2.027,2561.7,2560.2,0.0390469]
[1750039216598,0.9799,2561.6,2560.1,0.03904691]
[1750039216780,0.9799,2561.6,2560.1,10.0]
[1750039217101,0.9799,2561.6,2560.3,0.55]
[1750039217308,2.027,2561.5,2560.7,10.0]
[1750039217587,2.027,2561.5,2560.8,0.03903957]
[1750039218288,2.027,2561.6,2560.7,10.7935]
[1750039218598,2.027,2561.6,2560.9,10.0]
[1750039218777,10.0,2562.5,2561.0,0.03903606]
[1750039218976,0.764,2562.3,2561.0,0.03903606]
[1750039219568,0.764,2562.2,2560.8,1.62453163]
[1750039219753,10.0,2561.9,2560.4,0.7935]
[1750039219956,0.764,2562.0,2560.4,0.7935]
[1750039220879,19.35469807,2562.3,2559.8,12.75609092]
[1750039220880,35.45181627,2561.9,2560.1,0.7935]
[1750039221199,0.8325,2561.7,2560.2,0.03904927]
[1750039221402,0.8325,2561.5,2560.2,0.03904927]
[1750039221593,0.28595,2561.4,2560.2,0.03904927]
[1750039221989,0.8325,2561.5,2560.2,10.03904927]
[1750039222212,0.8325,2561.5,2560.1,0.7935]
[1750039222518,0.8325,2561.5,2560.2,0.03904744]
[1750039223014,0.8325,2561.5,2560.1,0.7935]
[1750039223178,0.8325,2561.5,2560.2,0.03905236]
[1750039223377,0.98615,2561.4,2560.2,0.03905236]
[1750039224107,0.98615,2561.4,2560.1,0.7935]
[1750039224330,13.90321169,2562.0,2560.1,0.7935]
[1750039224331,12.0138,2562.6,2561.0,6.23701627]
[1750039224473,2.027,2562.4,2561.1,0.55]
[1750039224675,0.1944,2562.0,2561.7,0.55]
[1750039224924,0.1944,2562.7,2562.2,0.1944]
[1750039225091,0.1944,2562.6,2562.1,0.1944]
[1750039225292,0.7508,2562.5,2561.5,0.7852]
[1750039225496,0.7508,2562.5,2561.7,0.1944]
[1750039225497,0.1944,2562.1,2561.7,0.1944]
[1750039225790,0.1944,2562.1,2561.8,0.03902882]
[1750039226401,2.027,2563.2,2561.9,0.7867]
[1750039226615,0.1944,2562.6,2562.0,0.1944]
[1750039226832,0.7708,2563.3,2562.1,10.03902107]
[1750039227126,2.027,2563.5,2562.5,0.9811]
[1750039227299,2.027,2563.5,2562.6,0.03900891]
[1750039227620,0.1944,2563.4,2562.9,0.1944]
[1750039227785,0.1944,2563.2,2562.7,0.1944]
[1750039227986,0.1944,2563.3,2563.0,0.03901115]
[1750039228410,0.1944,2563.3,2563.1,0.7867]
[1750039228597,0.1944,2563.3,2562.9,0.1944]
[1750039228801,0.1944,2563.3,2563.0,0.03900875]
[1750039229318,0.02,2563.9,2563.2,0.7867]
[1750039229528,0.02,2563.9,2563.3,10.03899866]
[1750039229682,0.02,2563.9,2563.4,2.08256987]
[1750039229892,0.02,2563.9,2563.5,0.03899865]
[1750039230110,0.02,2563.9,2563.6,1.3367]
[1750039230347,0.02,2563.9,2563.7,10.03899003]
[1750039230625,0.02,2563.9,2563.6,1.3367]
[1750039230809,0.02,2563.9,2563.7,1.13367]
[1750039231015,0.02,2563.9,2563.7,1.17266188]
[1750039231211,0.02,2563.9,2563.8,15.50046025]
[1750039231417,0.15765627,2565.7,2565.6,3.89772372]
[1750039231633,1.19897882,2566.9,2565.9,1.3591]
[1750039231959,0.02,2566.9,2566.1,0.55]
[1750039232104,0.15701295,2567.7,2566.8,1.11737614]
[1750039232285,0.26917384,2567.6,2567.2,0.55]
[1750039232629,0.26917384,2567.6,2567.2,0.39354901]
[1750039232943,0.26917384,2567.6,2567.1,7.318]
[1750039233290,0.26917384,2567.6,2566.6,8.1501]
[1750039233291,0.53369252,2567.6,2566.6,8.1501]
[1750039233538,0.02,2568.9,2566.9,0.765]
[1750039233829,0.02,2568.9,2568.3,0.765]
[1750039234121,0.02,2568.9,2568.4,10.03892193]
[1750039234299,0.02,2568.9,2568.4,10.0]
[1750039234498,2.485,2568.9,2568.5,0.32500782]
[1750039234898,2.485,2568.9,2568.6,0.35276576]
[1750039235100,2.485,2568.9,2568.7,0.32498252]
[1750039235298,0.02,2568.9,2568.8,0.35255342]
[1750039235514,0.02,2568.9,2568.8,0.03892341]
[1750039235715,0.02,2568.9,2568.7,0.7907]
[1750039235899,0.02,2568.9,2568.8,0.03891958]
[1750039236304,0.02,2568.9,2568.8,0.03892124]
[1750039236504,0.02,2568.9,2568.1,10.0]
[1750039236708,0.02,2568.9,2568.2,0.32504579]
[1750039236905,11.261,2568.9,2568.2,0.32504579]
[1750039237107,1.12668527,2568.8,2568.2,0.32504579]
[1750039237467,0.8191,2568.7,2568.2,0.32504579]
[1750039239430,0.8191,2568.7,2567.2,10.0]
[1750039239744,0.8191,2568.7,2567.3,0.32515974]
[1750039240247,0.1944,2567.7,2567.3,0.32515974]
[1750039240449,2.546,2567.6,2567.3,0.32515974]
[1750039240605,2.546,2567.6,2567.3,0.558504]
[1750039240804,2.546,2567.6,2567.3,0.51955974]
[1750039241709,2.546,2567.6,2567.3,0.03894428]
[1750039242260,2.546,2567.6,2567.3,3.93406747]
[1750039242759,2.546,2567.6,2567.2,0.1944]
[1750039244145,2.546,2567.6,2567.2,0.57700082]
[1750039244717,2.546,2567.6,2567.3,0.03894465]
[1750039244924,0.1944,2567.5,2567.3,0.03894639]
[1750039245924,0.1944,2567.5,2567.1,0.0389466]
[1750039246650,0.1944,2567.5,2567.1,0.42127865]
[1750039247320,2.546,2567.6,2567.4,0.1944]
[1750039248054,2.546,2567.6,2567.1,0.38233205]
[1750039248260,2.546,2567.6,2567.4,3.89498092]
[1750039248562,2.546,2567.6,2567.3,0.1944]
[1750039248717,2.546,2567.6,2566.9,10.0]
[1750039249055,2.7404,2567.6,2567.1,4.08982061]
[1750039249243,2.82004,2567.6,2566.7,0.8297]
[1750039249443,12.0019,2567.5,2566.3,4.68105285]
[1750039249643,12.0019,2567.5,2566.6,0.1944]
[1750039249644,0.1944,2567.0,2566.6,0.1944]
[1750039249844,0.1944,2567.0,2566.7,0.03895371]
[1750039250688,2.461,2566.9,2566.7,0.03895371]
[1750039250954,2.461,2566.9,2566.8,3.89590151]
[1750039251166,12.0019,2567.5,2566.8,10.62783887]
[1750039251167,0.1944,2567.5,2566.8,10.62783887]
[1750039251345,2.6554,2567.5,2567.1,0.1944]
[1750039251546,2.461,2567.4,2567.2,3.89526528]
[1750039251746,0.8191,2567.8,2567.2,3.89526528]
[1750039251747,0.1944,2567.7,2567.2,3.89526528]
[1750039251946,0.1944,2567.7,2567.2,3.93413771]
[1750039252248,0.7522,2568.2,2567.4,4.08938536]
[1750039252447,0.1944,2567.9,2567.6,3.89458762]
[1750039252663,2.461,2567.8,2567.7,0.03893975]
[1750039252963,2.461,2567.8,2567.6,0.1944]
[1750039253332,2.461,2567.8,2566.7,0.3807465]
[1750039253333,2.72654,2567.8,2566.7,0.3807465]
[1750039253533,0.1944,2567.3,2566.8,0.1944]
[1750039254135,2.461,2567.2,2566.8,0.03895065]
[1750039254335,0.1944,2567.0,2566.8,0.03895397]
[1750039254535,0.1944,2567.6,2567.0,10.0]
[1750039254741,11.233,2568.2,2567.6,3.89468764]
[1750039255063,11.233,2568.2,2567.6,3.89463047]
[1750039255064,2.461,2568.1,2567.6,3.89463047]
[1750039255233,2.461,2568.1,2567.5,3.8947739]
[1750039255561,11.233,2568.2,2567.7,3.89444799]
[1750039255761,13.694,2568.2,2567.8,3.93323259]
[1750039255964,13.694,2568.2,2567.3,3.8950927]
[1750039255965,13.694,2568.2,2567.4,10.0]
[1750039256134,0.8159,2568.8,2567.7,0.8313]
[1750039256336,0.8159,2568.8,2567.9,10.0]
[1750039256659,2.481,2568.9,2568.4,3.8933896]
[1750039256821,2.481,2568.9,2568.5,0.03892605]
[1750039257022,2.481,2568.9,2567.9,3.89411025]
[1750039257264,0.02,2568.9,2568.2,10.0]
[1750039257563,0.02,2568.9,2568.6,3.89305659]
[1750039257787,2.481,2568.9,2568.6,3.89313804]
[1750039257950,0.02,2568.9,2568.7,7.68192417]
[1750039258151,0.02,2568.9,2568.8,10.0]
[1750039258551,0.02,2568.9,2568.8,17.643]
[1750039258745,0.02,2568.9,2568.4,0.7842]
[1750039258951,2.48,2568.9,2568.3,7.643]
[1750039259149,0.02,2568.9,2568.3,7.643]
[1750039259346,2.48,2568.9,2568.5,3.89320609]
[1750039259582,2.48,2568.9,2568.5,5.47455799]
[1750039259786,0.02,2568.9,2568.5,5.47455799]
[1750039260082,2.48,2568.9,2568.6,0.0389218]
[1750039260386,2.48,2568.9,2568.2,1.1147633]
[1750039260387,2.46,2568.8,2568.4,7.66892769]
[1750039260542,0.02,2568.9,2568.4,7.66892769]
[1750039260750,2.46,2568.8,2568.4,7.63]
[1750039260945,0.02,2568.9,2568.5,0.03892681]
[1750039261150,0.02,2568.9,2568.8,3.89286826]
[1750039261453,0.02,2568.9,2568.8,3.93178713]
[1750039261648,0.02,2568.9,2568.8,13.93178713]
[1750039261855,0.02,2568.9,2568.8,16.67762054]
[1750039262052,0.02,2568.9,2568.8,14.44286826]
[1750039262248,0.02,2568.9,2568.8,17.2170229]
[1750039263383,0.00585273,2569.0,2568.8,0.8097]
[1750039263587,0.00585273,2569.0,2568.9,5.0101943]
[1750039263799,0.00585273,2569.0,2568.9,15.04911074]
[1750039263998,0.00585273,2569.0,2568.9,14.44271672]
[1750039264382,0.15765627,2569.7,2568.9,14.44271672]
[1750039264383,0.15765627,2569.7,2569.6,4.44165628]
[1750039264583,0.15765627,2569.7,2569.6,29.19621665]
[1750039264882,0.15765627,2569.7,2569.6,17.56405922]
[1750039265081,0.15765627,2569.7,2569.6,23.8822101]
[1750039265310,0.05246792,2569.7,2569.6,25.36860249]
[1750039265513,0.13784219,2570.1,2570.0,5.23805058]
[1750039265682,0.13784219,2570.1,2570.0,30.9186513]
[1750039265885,0.13784219,2570.1,2570.0,30.36866194]
[1750039266285,0.13784219,2570.1,2570.0,7.628]
[1750039266486,0.13784219,2570.1,2570.0,11.51905058]
[1750039266796,0.6667,2570.7,2570.6,13.89014237]
[1750039267191,0.6667,2570.7,2570.6,21.52314237]
[1750039268078,0.6667,2570.7,2570.6,17.633]
[1750039268273,0.6667,2570.7,2570.4,3.89039251]
[1750039268591,0.6667,2570.7,2570.5,0.03889254]
[1750039268789,0.6667,2570.7,2570.6,7.624]
[1750039269127,0.6667,2570.7,2570.6,22.27654237]
[1750039269580,0.6667,2570.7,2570.6,18.4054]
[1750039269782,0.6667,2570.7,2570.6,17.643]
[1750039270262,0.6667,2570.7,2570.1,0.7978]
[1750039270407,0.6667,2570.7,2570.3,10.0]
[1750039270607,0.6667,2570.7,2570.4,7.631]
[1750039270836,0.6667,2570.7,2570.4,7.66989631]
[1750039271540,0.6667,2570.7,2570.4,8.43688594]
[1750039271744,0.6667,2570.7,2570.4,8.39798963]
[1750039272049,0.6667,2570.7,2570.5,0.03889328]
[1750039272459,0.6667,2570.7,2570.4,8.39798963]
[1750039272690,0.6667,2570.7,2569.8,10.7948]
[1750039272865,0.6667,2570.7,2570.0,10.0]
[1750039273008,0.6667,2570.7,2570.1,0.03889778]
[1750039273557,0.6667,2570.7,2570.2,7.606]
[1750039273757,0.6667,2570.7,2570.3,0.03889803]
[1750039274203,0.6667,2570.7,2570.4,7.6]
[1750039274403,0.6667,2570.7,2570.5,0.03889651]
[1750039274661,0.6667,2570.7,2570.5,0.03889654]
[1750039274806,0.6667,2570.7,2570.5,10.03889654]
[1750039275009,0.6667,2570.7,2570.5,10.0]
[1750039275309,0.28693521,2570.7,2570.6,0.03889194]
[1750039275510,0.28693521,2570.7,2570.6,1.87917011]
[1750039275810,0.28693521,2570.7,2570.6,9.78149356]
[1750039276123,0.28693521,2570.7,2570.6,17.583]
[1750039276337,0.28693521,2570.7,2570.6,17.7774]
[1750039277008,0.9595,2571.5,2570.6,17.7774]
[1750039277009,0.8035,2573.0,2570.8,0.8288]
[1750039277221,0.8035,2573.0,2571.7,0.55]
[1750039277415,0.8035,2573.0,2571.6,11.74065284]
[1750039277416,0.8035,2573.0,2571.6,0.8288]
[1750039277659,2.458,2573.3,2571.4,3.88891397]
[1750039277660,0.7946,2572.5,2571.7,0.35181923]
[1750039277818,0.7946,2572.5,2571.4,3.88880285]
[1750039277819,3.2526,2572.5,2571.1,0.7777]
[1750039278025,0.34679101,2572.4,2571.2,7.598]
[1750039278265,0.29679101,2572.4,2571.3,0.03888116]
[1750039278462,0.8204,2572.3,2570.8,10.0]
[1750039278643,0.29679101,2572.4,2570.4,0.7638898]
[1750039278967,0.29679101,2572.4,2570.5,7.63488965]
[1750039279249,2.457,2572.3,2570.6,7.91274232]
[1750039279474,2.457,2572.3,2570.7,0.32472968]
[1750039279615,2.457,2572.3,2570.7,0.36361787]
[1750039280047,2.457,2572.3,2570.7,7.94561787]
[1750039280278,0.2753791,2572.2,2570.7,8.74017966]
[1750039280551,0.2753791,2572.2,2570.7,8.69729147]
[1750039280962,2.398,2572.1,2570.7,8.69729147]
[1750039281368,2.398,2572.1,2570.8,0.35241841]
[1750039281657,0.825,2572.0,2570.9,0.03889076]
[1750039282013,2.398,2571.9,2570.9,0.03889076]
[1750039282214,2.398,2571.8,2570.9,0.03889076]
[1750039282414,2.398,2571.8,2571.0,0.35230189]
[1750039282642,2.7203,2571.8,2570.8,7.558]
[1750039282920,2.7203,2571.8,2570.8,7.556]
[1750039283120,2.398,2571.7,2570.9,0.03889063]
[1750039283315,2.398,2571.7,2571.0,0.35231609]
[1750039283539,2.398,2571.7,2570.8,7.554]
[1750039283856,2.398,2571.7,2570.9,0.03888973]
[1750039284158,2.398,2571.7,2570.3,1.21883972]
[1750039284371,2.6378,2571.6,2570.6,7.551]
[1750039284567,2.6378,2571.6,2570.4,1.12188397]
[1750039284869,3.1985,2571.5,2570.7,7.548]
[1750039285039,3.1985,2571.5,2570.8,0.35263562]
[1750039285361,3.1985,2571.5,2570.4,8.66288397]
[1750039285569,3.54233,2571.5,2570.5,12.03011655]
[1750039285753,3.54233,2571.5,2570.6,1.24492257]
[1750039286069,3.1985,2571.5,2570.7,1.28378951]
[1750039286218,3.1985,2571.5,2570.7,0.03889416]
[1750039286419,3.1985,2571.5,2570.8,0.89333948]
[1750039286720,2.398,2571.4,2570.9,0.0388919]
[1750039287158,0.1944,2571.2,2570.7,0.1944]
[1750039287484,0.1944,2571.2,2570.8,1.28481859]
[1750039287811,0.1944,2571.2,2570.7,0.1944]
[1750039287930,0.1944,2571.2,2570.8,0.89424109]
[1750039288129,0.1944,2571.2,2570.7,0.1944]
[1750039288446,0.1944,2571.0,2570.6,7.515]
[1750039288649,0.1944,2571.0,2570.5,7.7064]
[1750039288821,0.1944,2571.0,2570.6,0.03889589]
[1750039289531,0.1944,2571.0,2570.5,0.1944]
[1750039289744,8.05310525,2571.4,2570.3,0.8248]
[1750039289940,5.65510525,2570.6,2570.3,0.8248]
[1750039290288,2.398,2570.5,2570.3,0.8248]
[1750039290490,40.0,2570.4,2570.3,0.8248]
[1750039290789,30.0,2570.2,2568.7,1.30119068]
[1750039290922,16.87110525,2570.1,2568.5,1.10679068]
[1750039291121,16.87110525,2570.1,2568.5,0.59174324]
[1750039291122,0.1944,2569.0,2568.5,0.59174324]
[1750039291337,2.398,2569.1,2568.5,0.59174324]
[1750039291521,2.398,2569.1,2568.6,0.39246221]
[1750039291758,2.398,2569.1,2568.7,0.1944]
[1750039291924,2.398,2569.1,2568.8,0.03892307]
[1750039292120,0.1944,2569.0,2568.8,0.03892307]
[1750039292357,2.5924,2569.3,2568.8,0.23332307]
[1750039292619,2.5924,2569.3,2568.8,0.1944]
[1750039292935,0.1944,2569.1,2568.6,0.1944]
[1750039293456,0.1944,2568.9,2568.5,0.1944]
[1750039293660,0.1944,2568.9,2568.7,0.8085]
[1750039294721,2.398,2569.3,2568.7,0.8085]
[1750039294925,2.6378,2569.3,2568.7,0.8085]
[1750039295258,0.1944,2568.8,2568.5,0.3974601]
[1750039295463,0.1944,2568.8,2568.6,0.03892755]
[1750039295980,18.701,2570.1,2568.6,0.1944]
[1750039295981,2.5934,2569.1,2568.6,0.1944]
[1750039296143,2.399,2569.0,2568.6,0.1944]
[1750039296950,0.1944,2568.7,2568.0,10.0]
[1750039297146,2.6389,2569.0,2568.1,0.03893304]
[1750039297147,0.1944,2568.5,2568.1,0.03893304]
[1750039297352,5.65510525,2571.0,2568.3,5.65510525]
[1750039297559,0.1944,2569.8,2569.3,0.1944]
[1750039298176,0.1944,2569.8,2569.4,0.03891322]
[1750039298586,0.1944,2569.8,2569.3,0.1944]
[1750039298757,0.1944,2569.6,2569.4,0.03891546]
[1750039298935,2.5934,2569.8,2569.4,0.03891546]
[1750039299129,0.1944,2569.8,2569.4,0.03891546]
[1750039299368,2.399,2570.1,2569.4,0.45144922]
[1750039299547,0.1944,2570.0,2569.5,0.1944]
[1750039299747,0.1944,2570.0,2569.6,0.03890988]
[1750039300432,2.399,2570.1,2569.3,0.42832788]
[1750039300667,0.1944,2569.7,2569.3,0.0389099]
[1750039300832,0.1944,2569.7,2569.3,0.03891299]
[1750039302641,0.1944,2569.7,2569.4,0.35347552]
[1750039302865,0.1944,2569.7,2569.5,0.35350231]
[1750039303066,0.1944,2569.7,2569.6,0.35350174]
[1750039303253,0.1944,2569.7,2569.3,0.42322742]
[1750039304976,18.677,2570.9,2569.3,6.07833267]
[1750039304977,11.221,2570.9,2569.3,6.07833267]
[1750039305147,11.221,2570.9,2570.1,5.65510525]
[1750039305148,2.315,2570.9,2570.1,5.65510525]
[1750039305348,2.315,2570.9,2570.2,0.03889841]
[1750039305548,2.315,2570.9,2569.6,0.7742]
[1750039305780,0.7628,2570.8,2569.7,3.89148994]
[1750039305946,0.7628,2570.6,2569.7,3.89148994]
[1750039306151,0.1944,2570.5,2570.0,0.1944]
[1750039306447,0.1944,2570.5,2570.1,0.03890223]
[1750039307688,0.7628,2570.6,2570.1,0.03890223]
[1750039307912,0.7628,2570.6,2569.9,10.0]
[1750039307913,0.7628,2570.6,2570.4,0.1944]
[1750039309851,0.7801,2570.3,2569.5,14.71961933]
[1750039310076,0.7801,2570.3,2569.6,9.64823988]
[1750039310279,0.7801,2570.3,2570.0,0.1944]
[1750039310477,0.7801,2570.3,2569.6,7.396]
[1750039310685,0.9745,2570.3,2569.8,0.1944]
[1750039310886,0.9745,2570.3,2569.9,0.03890564]
[1750039311060,0.9745,2570.3,2569.8,0.1944]
[1750039311385,0.9745,2570.3,2569.9,0.39185958]
[1750039311685,0.9745,2570.3,2569.9,0.0389057]
[1750039312986,0.9745,2570.3,2569.8,0.1944]
[1750039313185,0.7801,2570.3,2569.9,0.35301774]
[1750039313387,0.7801,2570.3,2570.0,0.54743527]
[1750039313612,0.8123,2570.5,2570.1,0.03890254]
[1750039313789,0.8123,2570.5,2570.2,0.1944]
[1750039313994,0.8123,2570.5,2570.3,0.39187644]
[1750039314291,0.8123,2570.5,2570.2,0.1944]
[1750039314497,0.1944,2570.7,2570.3,0.03889943]
[1750039314653,0.8004,2570.8,2570.4,0.54728058]
[1750039314853,0.8004,2570.8,2570.4,0.1944]
[1750039315301,0.8004,2570.8,2570.3,0.03889719]
[1750039315510,0.1944,2570.7,2570.3,0.03889719]
[1750039315712,0.1944,2570.7,2570.4,0.35296384]
[1750039315854,0.8004,2570.8,2570.5,0.03889697]
[1750039317351,0.8004,2570.8,2570.6,0.35292462]
[1750039317687,0.8004,2570.8,2570.5,0.03889697]
[1750039317911,0.8004,2570.8,2570.6,0.35292527]
[1750039318087,0.8004,2570.8,2570.5,0.03889697]
[1750039319183,0.8004,2570.8,2570.6,0.35303461]
[1750039319384,0.8004,2570.8,2570.7,0.35303115]
[1750039319590,0.8004,2570.8,2570.4,0.1944]
[1750039320362,0.8004,2570.8,2570.1,7.326]
[1750039320559,0.1944,2570.6,2570.2,0.23330045]
[1750039320763,0.1944,2570.6,2570.3,1.3602]
[1750039320959,0.005,2571.1,2571.0,4.69973714]
[1750039321163,0.7946,2572.5,2571.9,3.88813465]
[1750039321400,0.7946,2572.5,2572.0,0.03886942]
[1750039321607,0.7946,2572.5,2572.0,0.0388699]
[1750039321813,0.7946,2572.5,2571.6,10.0]
[1750039322012,2.234,2572.4,2571.7,0.03887638]
[1750039322416,2.4276,2572.4,2571.9,0.1944]
[1750039323261,0.1936,2572.1,2571.7,0.1944]
[1750039323661,0.8322,2572.3,2571.6,10.0]
[1750039323924,1.0475101,2572.6,2571.9,5.65510525]
[1750039324212,1.0475101,2572.6,2572.0,0.35225378]
[1750039324363,0.7544,2572.1,2571.8,0.1944]
[1750039324568,0.2153101,2572.6,2571.8,0.1944]
[1750039324569,0.2153101,2572.6,2571.9,0.03887673]
[1750039324809,0.2153101,2572.6,2572.3,0.1936]
[1750039325320,0.2153101,2572.6,2572.4,0.03886904]
[1750039325679,0.2153101,2572.6,2572.5,0.35214542]
[1750039325985,0.2153101,2572.6,2572.5,0.54570394]
[1750039326198,0.2153101,2572.6,2572.5,0.9536]
[1750039326365,0.01,2572.9,2572.5,12.35719554]
[1750039326565,0.01,2572.9,2572.5,18.97447053]
[1750039326777,0.01,2572.9,2572.6,0.35191998]
[1750039326983,0.7696,2572.9,2572.7,0.35191875]
[1750039327283,0.7696,2572.9,2572.7,0.03886462]
[1750039327483,0.7696,2572.9,2572.8,0.35202258]
[1750039327685,0.7696,2572.9,2572.5,7.36]
[1750039327942,0.7696,2572.9,2572.6,0.03886538]
[1750039328083,0.7696,2572.9,2572.5,7.36]
[1750039328278,0.7696,2572.9,2572.1,0.76]
[1750039328486,0.7696,2572.9,2572.2,7.38286651]
[1750039328708,0.7696,2572.9,2572.2,7.344]
[1750039329117,0.7696,2572.9,2572.3,0.35215412]
[1750039329320,0.7696,2572.9,2571.8,0.7809]
[1750039329321,0.7696,2572.9,2572.4,0.35217977]
[1750039329520,0.7696,2572.9,2571.9,7.339]
[1750039329821,0.7696,2572.9,2572.0,0.3522074]
[1750039330050,0.7696,2572.9,2572.1,0.03887135]
[1750039330194,0.7696,2572.9,2572.2,0.35217463]
[1750039330390,0.7696,2572.9,2572.0,0.76892074]
[1750039331221,0.01,2572.9,2572.1,0.85707092]
[1750039331424,0.806,2572.8,2572.1,0.03887092]
[1750039332125,0.806,2572.8,2571.7,0.8182]
[1750039332324,0.806,2572.8,2572.0,0.03886744]
[1750039332647,0.806,2572.8,2572.1,10.6]
[1750039332941,0.806,2572.8,2572.2,2.30975643]
[1750039333150,0.01,2572.9,2572.3,10.0]
[1750039333356,0.01,2572.9,2572.6,10.0]
[1750039333495,0.01,2572.9,2572.7,0.03886009]
[1750039334561,0.01,2572.9,2572.2,2.27088897]
[1750039334706,0.01,2572.9,2572.1,0.38918518]
[1750039334905,0.01,2572.9,2572.2,7.35086787]
[1750039335100,0.01,2572.9,2572.2,7.312]
[1750039335305,0.01,2572.9,2572.4,0.7987]
[1750039335508,0.01,2572.9,2572.6,3.88702334]
[1750039335757,0.01,2572.9,2572.7,0.43144728]
[1750039336053,0.01,2572.9,2572.2,7.312]
[1750039336264,0.01,2572.9,2572.7,0.1936]
[1750039336558,0.01,2572.9,2572.8,0.03886196]
[1750039336703,0.01,2572.9,2572.8,0.35181345]
[1750039336902,0.01,2572.9,2572.7,0.1936]
[1750039337157,0.01,2572.9,2572.8,0.03885877]
[1750039337862,0.01,2572.9,2572.8,15.22957469]
[1750039338079,0.01,2572.9,2572.8,17.8526297]
[1750039338358,0.8172,2573.8,2572.8,13.41581378]
[1750039338558,0.1936,2573.6,2572.8,13.41581378]
[1750039338717,0.1936,2573.6,2573.1,0.1936]
[1750039338916,0.1936,2573.6,2573.2,0.03885569]
[1750039339127,2.242,2573.9,2573.2,0.03885569]
[1750039339326,0.01,2573.9,2573.7,0.1936]
[1750039339527,0.01,2573.9,2573.8,0.35142214]
[1750039339729,0.01,2573.9,2573.8,0.351446]
[1750039339908,0.01,2573.9,2573.5,0.1936]
[1750039340113,0.01,2573.9,2573.6,0.03884982]
[1750039340665,0.01,2573.9,2573.7,0.1936]
[1750039340968,0.01,2573.9,2573.8,0.03884751]
[1750039341117,0.01,2573.9,2573.8,0.35139565]
[1750039341317,0.01,2573.9,2573.8,0.03884857]
[1750039341535,0.01,2573.9,2573.8,0.93674315]
[1750039341710,0.01,2573.9,2573.8,0.1936]
[1750039342126,0.01,2573.9,2573.8,0.39355518]
[1750039342439,0.7969,2573.9,2573.6,0.1936]
[1750039342655,0.7969,2573.9,2573.4,7.314]
[1750039342826,0.7969,2573.9,2573.4,7.5076]
[1750039343056,2.232,2573.8,2572.8,3.42331378]
[1750039343242,0.1936,2573.3,2572.5,0.7614]
[1750039343443,0.7869,2573.5,2572.6,0.1936]
[1750039343771,0.7762,2573.0,2572.2,0.1936]
[1750039343972,0.7762,2573.0,2571.9,8.1027]
[1750039343973,0.1936,2572.8,2572.3,0.2324684]
[1750039344180,0.01,2573.9,2572.8,0.7917]
[1750039344380,0.01,2573.9,2573.0,10.0]
[1750039344665,0.01,2573.9,2573.1,0.88923705]
[1750039344975,0.01,2573.9,2573.0,10.0]
[1750039345184,0.7584,2573.8,2573.1,0.88961737]
[1750039345320,0.7584,2573.8,2573.0,10.0]
[1750039345521,0.7584,2573.8,2573.0,11.48857025]
[1750039346183,0.7584,2573.8,2573.1,0.03885401]
[1750039346479,0.7584,2573.8,2572.7,1.11133968]
[1750039346620,0.7584,2573.8,2572.8,0.8907848]
[1750039346823,0.7584,2573.8,2572.4,1.11133968]
[1750039347077,0.7751,2573.6,2572.5,8.25684834]
[1750039347225,0.30004,2573.7,2572.6,0.89098872]
[1750039347226,2.232,2573.5,2572.6,0.89098872]
[1750039347433,0.7751,2573.4,2572.6,0.89098872]
[1750039347723,0.7751,2573.4,2572.3,7.326]
[1750039347981,0.7751,2573.4,2572.4,0.89248182]
[1750039348191,0.7751,2573.2,2572.4,0.03886836]
[1750039348473,0.7751,2573.2,2572.5,0.89349948]
[1750039348624,0.7751,2573.2,2572.4,0.03886836]
[1750039348949,0.7751,2573.2,2572.5,0.89363984]
[1750039349145,0.7751,2573.2,2572.6,0.89507308]
[1750039349477,0.7751,2573.0,2572.3,1.11133968]
[1750039349624,0.7751,2572.8,2572.4,0.89557395]
[1750039349827,3.0071,2572.8,2572.2,0.37997976]